bitfinex-derivatives/quotes_BTCF0:USTF0_20241221
["timestamp","ask_amount","ask_price","bid_price","bid_amount"]
[1734771632060,4e-05,98629.0,98628.0,0.053713]
[1734771633571,4e-05,98629.0,98628.0,0.054713]
[1734771636078,4e-05,98629.0,98628.0,0.23642431]
[1734771637164,4e-05,98629.0,98628.0,0.054713]
[1734771640070,4e-05,98629.0,98628.0,0.052713]
[1734771640370,4e-05,98629.0,98628.0,0.053713]
[1734771641279,4e-05,98629.0,98628.0,0.23542431]
[1734771641481,0.3608,98647.0,98629.0,0.050712]
[1734771641670,0.411503,98647.0,98630.0,0.050711]
[1734771641872,0.01004332,98646.0,98630.0,0.050711]
[1734771642071,0.06074732,98645.0,98631.0,0.050711]
[1734771642280,0.01004332,98644.0,98643.0,0.050705]
[1734771642871,0.004,98647.0,98646.0,0.050704]
[1734771643180,0.01004741,98647.0,98646.0,0.050704]
[1734771645280,0.01104741,98647.0,98646.0,0.050704]
[1734771647180,0.01104741,98647.0,98646.0,0.06866991]
[1734771647679,0.37184741,98647.0,98646.0,0.01796591]
[1734771647878,0.050704,98646.0,98643.0,0.050705]
[1734771648078,0.01005967,98645.0,98643.0,0.050705]
[1734771648382,0.01009967,98644.0,98643.0,0.050705]
[1734771648883,0.01009869,98644.0,98643.0,0.050705]
[1734771650079,0.01009869,98644.0,98643.0,0.06890811]
[1734771651189,0.01509869,98644.0,98643.0,0.06890811]
[1734771651789,0.01503146,98644.0,98643.0,0.06890811]
[1734771652178,0.01103146,98644.0,98643.0,0.06890811]
[1734771652786,0.01303146,98644.0,98643.0,0.06890811]
[1734771652983,0.01403146,98644.0,98643.0,0.06890811]
[1734771653585,0.01303146,98644.0,98643.0,0.06890811]
[1734771653785,0.01403146,98644.0,98643.0,0.06890811]
[1734771654186,0.01103146,98644.0,98643.0,0.06890811]
[1734771654393,0.01403146,98644.0,98643.0,0.06890811]
[1734771654783,0.01103146,98644.0,98643.0,0.06890811]
[1734771654980,0.01403427,98644.0,98643.0,0.06890811]
[1734771655480,0.00204,98644.0,98643.0,0.06890811]
[1734771655678,0.3608,98655.0,98654.0,0.050699]
[1734771655878,0.37077149,98655.0,98654.0,0.050699]
[1734771656087,0.15044746,98656.0,98654.0,0.050699]
[1734771656590,0.12086432,98658.0,98656.0,0.050698]
[1734771658088,0.12186432,98658.0,98657.0,0.0384]
[1734771658395,0.001,98658.0,98657.0,0.0384]
[1734771658688,0.48166432,98671.0,98657.0,0.0384]
[1734771658897,0.48166432,98671.0,98669.0,0.050691]
[1734771659085,0.0099264,98670.0,98669.0,0.050691]
[1734771659287,0.0606174,98670.0,98669.0,0.050691]
[1734771660084,0.050694,98665.0,98664.0,0.18202046]
[1734771660287,0.0606204,98665.0,98664.0,0.18202046]
[1734771660490,0.0606604,98665.0,98664.0,0.18202046]
[1734771660889,0.050696,98661.0,98658.0,0.050697]
[1734771661088,0.0099264,98660.0,98658.0,0.050697]
[1734771661291,0.0099664,98659.0,98658.0,0.050697]
[1734771662188,4e-05,98659.0,98658.0,0.050697]
[1734771662584,0.00104,98659.0,98658.0,0.050697]
[1734771663496,0.00204,98659.0,98658.0,0.050697]
[1734771664097,0.00404,98659.0,98658.0,0.050697]
[1734771664598,0.00204,98659.0,98658.0,0.050697]
[1734771665098,0.00104,98659.0,98658.0,0.050697]
[1734771666096,0.00104,98659.0,98658.0,0.23271746]
[1734771670499,0.00104,98659.0,98658.0,0.050697]
[1734771673097,0.00104,98659.0,98658.0,0.23269536]
[1734771676303,0.00104,98659.0,98658.0,0.050697]
[1734771683195,0.0109744,98659.0,98658.0,0.050697]
[1734771683908,0.00104,98659.0,98658.0,0.050697]
[1734771684106,0.01099044,98659.0,98658.0,0.050697]
[1734771684600,0.12086432,98666.0,98665.0,0.050694]
[1734771684795,0.13164359,98679.0,98671.0,0.050691]
[1734771684995,0.13164359,98679.0,98678.0,0.050687]
[1734771685808,0.3608,98685.0,98684.0,0.050684]
[1734771687496,0.3628,98685.0,98684.0,0.051684]
[1734771688206,0.3628,98685.0,98683.0,0.18224234]
[1734771688404,0.3628,98685.0,98684.0,0.050684]
[1734771688706,0.3678,98685.0,98684.0,0.051684]
[1734771690410,0.3678,98685.0,98684.0,0.050684]
[1734771691009,0.3628,98685.0,98684.0,0.050684]
[1734771691206,0.3678,98685.0,98684.0,0.051684]
[1734771691401,0.3678,98685.0,98684.0,0.001]
[1734771696305,0.418484,98685.0,98684.0,0.001]
[1734771696815,0.42844703,98685.0,98684.0,0.001]
[1734771697907,0.06764703,98685.0,98684.0,0.001]
[1734771698115,0.42844703,98685.0,98684.0,0.001]
[1734771698712,0.418484,98685.0,98684.0,0.001]
[1734771699114,0.428456,98685.0,98684.0,0.001]
[1734771701011,0.418484,98685.0,98684.0,0.001]
[1734771701216,0.42845692,98685.0,98684.0,0.001]
[1734771702521,0.44081402,98685.0,98684.0,0.001]
[1734771707034,0.44080076,98685.0,98684.0,0.001]
[1734771707527,0.4408015,98685.0,98684.0,0.001]
[1734771707710,0.4284444,98685.0,98684.0,0.001]
[1734771708323,0.4408015,98685.0,98684.0,0.001]
[1734771709914,0.44080263,98685.0,98684.0,0.001]
[1734771715214,0.59186792,98685.0,98684.0,0.001]
[1734771716320,0.58190639,98685.0,98684.0,0.001]
[1734771716525,0.59187841,98685.0,98684.0,0.001]
[1734771718422,0.44081312,98685.0,98684.0,0.001]
[1734771719025,0.44081594,98685.0,98684.0,0.001]
[1734771719223,0.44081593,98685.0,98684.0,0.001]
[1734771719434,0.4308411,98685.0,98684.0,0.001]
[1734771719623,0.48011259,98685.0,98684.0,0.18324234]
[1734771719824,0.49008797,98685.0,98684.0,0.18324234]
[1734771720632,0.48011259,98685.0,98684.0,0.18324234]
[1734771721036,0.46775549,98685.0,98684.0,0.18324234]
[1734771721625,0.47773776,98685.0,98684.0,0.18324234]
[1734771722524,0.47773776,98685.0,98670.0,0.30278526]
[1734771722525,0.050691,98671.0,98670.0,0.30278526]
[1734771722828,0.43386681,98671.0,98670.0,0.30278526]
[1734771723629,0.42147687,98671.0,98670.0,0.41448526]
[1734771723826,0.411491,98671.0,98670.0,0.41448526]
[1734771724030,0.42342656,98671.0,98670.0,0.41448526]
[1734771724234,0.42342656,98671.0,98670.0,0.1117]
[1734771724737,0.42642656,98671.0,98670.0,0.1117]
[1734771726434,0.42642656,98671.0,98670.0,0.0361]
[1734771726435,0.416491,98671.0,98670.0,0.0361]
[1734771726634,0.42643764,98671.0,98670.0,0.0361]
[1734771727338,0.57738902,98671.0,98670.0,0.0361]
[1734771729331,0.57742084,98671.0,98670.0,0.0361]
[1734771730135,0.57742084,98671.0,98669.0,8e-05]
[1734771730333,0.00997846,98670.0,98669.0,8e-05]
[1734771730926,0.00997846,98670.0,98669.0,1e-06]
[1734771731130,0.37077846,98670.0,98669.0,1e-06]
[1734771731340,0.3831684,98670.0,98669.0,1e-06]
[1734771731646,0.4214382,98670.0,98669.0,1e-06]
[1734771732533,0.4244382,98670.0,98669.0,1e-06]
[1734771732841,0.60543243,98670.0,98669.0,1e-06]
[1734771733232,0.050699,98654.0,98653.0,0.01491361]
[1734771733438,0.42147746,98654.0,98651.0,0.0388]
[1734771733628,0.00997846,98653.0,98651.0,0.0388]
[1734771733833,0.411539,98654.0,98651.0,0.0388]
[1734771733834,0.01001846,98652.0,98651.0,0.0388]
[1734771734830,0.01001846,98652.0,98651.0,0.0398]
[1734771735035,0.06071846,98652.0,98651.0,0.0398]
[1734771735236,0.06071846,98652.0,98651.0,0.05578784]
[1734771736242,0.06071846,98652.0,98651.0,0.0408]
[1734771736650,0.06071846,98652.0,98651.0,0.0418]
[1734771740243,0.06071846,98652.0,98651.0,0.003]
[1734771742546,0.06078779,98652.0,98651.0,0.003]
[1734771744344,0.06080137,98652.0,98651.0,0.003]
[1734771746251,0.18145639,98652.0,98651.0,0.003]
[1734771746649,0.050707,98639.0,98638.0,0.00152046]
[1734771746846,0.411507,98639.0,98638.0,0.00152046]
[1734771747051,0.42160866,98639.0,98638.0,0.00152046]
[1734771747750,0.42160866,98639.0,98638.0,0.01540602]
[1734771748053,0.411547,98639.0,98638.0,0.01352046]
[1734771748246,0.42165704,98639.0,98638.0,0.01352046]
[1734771753156,0.42162929,98639.0,98638.0,0.01352046]
[1734771755855,0.54228402,98639.0,98638.0,0.012]
[1734771756849,0.42162929,98639.0,98638.0,0.012]
[1734771757555,0.42162929,98639.0,98638.0,0.001]
[1734771757754,0.42162929,98639.0,98638.0,0.002]
[1734771758151,0.42162929,98639.0,98617.0,0.0377]
[1734771758357,0.050718,98618.0,98617.0,0.0377]
[1734771758552,0.42160029,98618.0,98617.0,0.05081277]
[1734771758751,0.42169194,98618.0,98617.0,0.05081277]
[1734771759255,0.42169194,98618.0,98617.0,0.0377]
[1734771759752,0.42869194,98618.0,98617.0,0.0387]
[1734771759948,0.43469194,98618.0,98617.0,0.0387]
[1734771760555,0.43469194,98618.0,98617.0,0.001]
[1734771761957,0.55554395,98618.0,98617.0,0.001]
[1734771763153,0.43469194,98618.0,98617.0,0.001]
[1734771767052,0.07389194,98618.0,98617.0,0.001]
[1734771767248,0.43469194,98618.0,98617.0,0.001]
[1734771767660,0.43460925,98618.0,98617.0,0.001]
[1734771770067,0.050719,98617.0,98599.0,0.0381]
[1734771770368,0.411565,98605.0,98599.0,0.0381]
[1734771770557,0.42162886,98605.0,98599.0,0.0381]
[1734771770957,0.42162664,98605.0,98599.0,0.0381]
[1734771771358,0.42162664,98605.0,98600.0,0.01328373]
[1734771771860,0.050727,98601.0,98600.0,0.01328373]
[1734771772060,0.050727,98601.0,98599.0,0.0381]
[1734771772257,0.050767,98601.0,98599.0,0.0381]
[1734771772457,4e-05,98600.0,98599.0,0.0381]
[1734771773458,0.01010195,98600.0,98599.0,0.0381]
[1734771773760,0.01610195,98600.0,98599.0,0.0381]
[1734771774067,0.02510195,98600.0,98599.0,0.001]
[1734771774468,0.01610195,98600.0,98588.0,0.0382]
[1734771774664,0.411532,98590.0,98588.0,0.0382]
[1734771774965,0.411572,98590.0,98589.0,0.0132435]
[1734771775162,0.411572,98590.0,98589.0,8.526e-05]
[1734771776863,0.42170024,98590.0,98589.0,8.526e-05]
[1734771777063,0.411572,98590.0,98589.0,8.526e-05]
[1734771777954,0.414572,98590.0,98589.0,8.526e-05]
[1734771778159,0.42470024,98590.0,98589.0,8.526e-05]
[1734771778664,0.415572,98590.0,98589.0,8.526e-05]
[1734771778858,0.42570024,98590.0,98589.0,8.526e-05]
[1734771779262,0.42570024,98590.0,98589.0,2.6e-07]
[1734771780074,0.050749,98557.0,98556.0,0.115]
[1734771780368,0.050749,98557.0,98556.0,0.1284099]
[1734771780369,0.05087486,98557.0,98556.0,0.1284099]
[1734771781359,0.06105237,98557.0,98556.0,0.1284099]
[1734771781559,0.02530337,98557.0,98556.0,0.001]
[1734771781764,0.07605237,98557.0,98556.0,0.001]
[1734771782666,0.07606808,98557.0,98556.0,0.001]
[1734771782871,0.06587486,98557.0,98556.0,0.001]
[1734771783167,0.07611342,98557.0,98556.0,0.001]
[1734771783361,0.06587486,98557.0,98556.0,0.001]
[1734771784680,0.72220001,98562.0,98556.0,0.001]
[1734771784970,0.7216,98562.0,98556.0,0.001]
[1734771785173,0.050749,98557.0,98556.0,0.001]
[1734771786262,0.05075,98555.0,98554.0,0.01326539]
[1734771786462,0.01023856,98555.0,98546.0,8e-05]
[1734771786667,0.050754,98548.0,98546.0,8e-05]
[1734771787570,0.050754,98548.0,98546.0,0.00108]
[1734771788976,0.050754,98548.0,98546.0,8e-05]
[1734771789176,0.058754,98548.0,98546.0,0.00108]
[1734771789376,0.060754,98548.0,98546.0,0.00108]
[1734771791671,0.01,98548.0,98547.0,0.050754]
[1734771792178,0.01,98548.0,98546.0,0.00108]
[1734771792571,4e-05,98547.0,98546.0,0.00108]
[1734771793066,4e-05,98547.0,98546.0,8e-05]
[1734771793779,0.00704,98547.0,98546.0,0.00108]
[1734771795370,0.00404,98547.0,98546.0,8e-05]
[1734771795573,0.01204,98547.0,98546.0,0.00108]
[1734771795776,0.02224481,98547.0,98546.0,0.00108]
[1734771798484,0.38304481,98547.0,98546.0,0.00108]
[1734771798881,0.38305946,98547.0,98546.0,0.00108]
[1734771801282,0.37903265,98547.0,98546.0,0.00108]
[1734771801485,0.38003265,98547.0,98546.0,0.00208]
[1734771802072,0.37203265,98547.0,98546.0,0.00108]
[1734771802272,0.37303265,98547.0,98546.0,0.00408]
[1734771802683,0.37302201,98547.0,98546.0,0.00408]
[1734771803380,0.050768,98521.0,98519.0,0.0362]
[1734771803782,0.01033637,98520.0,98519.0,0.0362]
[1734771803988,0.050769,98519.0,98509.0,0.050774]
[1734771804172,0.37109637,98518.0,98509.0,0.050774]
[1734771804372,0.37113637,98518.0,98517.0,0.01278302]
[1734771804598,0.37113637,98518.0,98517.0,0.000128]
[1734771805478,0.37313637,98518.0,98517.0,0.000128]
[1734771805888,0.37713637,98518.0,98517.0,0.000128]
[1734771806878,0.37711549,98518.0,98517.0,0.000128]
[1734771807182,0.37611549,98518.0,98517.0,0.000128]
[1734771807385,0.3761153,98518.0,98517.0,0.000128]
[1734771807594,0.3791153,98518.0,98517.0,0.000128]
[1734771808288,0.3741153,98518.0,98517.0,0.000128]
[1734771808581,0.3731153,98518.0,98517.0,0.009128]
[1734771811295,0.46353648,98518.0,98517.0,0.009128]
[1734771812787,0.37315421,98518.0,98517.0,0.009128]
[1734771815886,0.36284,98518.0,98517.0,0.009128]
[1734771816087,0.37304699,98518.0,98517.0,0.009128]
[1734771820688,0.37304699,98518.0,98517.0,0.02128621]
[1734771820886,0.37304699,98518.0,98517.0,0.009128]
[1734771821092,0.01224699,98518.0,98517.0,0.009128]
[1734771821305,0.00204,98518.0,98517.0,0.009128]
[1734771821501,0.01223516,98518.0,98517.0,0.009128]
[1734771823894,0.37303516,98518.0,98517.0,0.009128]
[1734771824203,0.37203516,98518.0,98517.0,0.008128]
[1734771824391,0.37306477,98518.0,98517.0,0.009128]
[1734771827187,0.37308628,98518.0,98517.0,0.009128]
[1734771828696,0.41248628,98518.0,98517.0,0.009128]
[1734771829594,0.41248628,98518.0,98517.0,1e-06]
[1734771829795,0.42443144,98518.0,98517.0,1e-06]
[1734771830505,0.65456229,98518.0,98517.0,1e-06]
[1734771830790,0.65256229,98518.0,98500.0,0.1]
[1734771830993,0.411578,98501.0,98500.0,0.1]
[1734771831194,0.42194936,98501.0,98500.0,0.1]
[1734771831901,0.78274936,98501.0,98500.0,0.102]
[1734771832894,0.83213337,98501.0,98500.0,0.102]
[1734771833299,0.83213337,98501.0,98476.0,0.24197289]
[1734771833300,0.050791,98477.0,98476.0,0.24197289]
[1734771833494,0.0611877,98477.0,98476.0,0.24197289]
[1734771833691,0.0611877,98477.0,98476.0,0.25448314]
[1734771833895,0.0611877,98477.0,98476.0,0.24197289]
[1734771834090,0.0612277,98477.0,98476.0,0.24197289]
[1734771834901,0.0702277,98477.0,98476.0,0.24197289]
[1734771835200,0.050796,98467.0,98460.0,0.01240651]
[1734771835391,0.38773791,98466.0,98459.0,0.24197289]
[1734771835700,0.050839,98460.0,98459.0,0.24197289]
[1734771836003,0.07785086,98460.0,98459.0,0.24197289]
[1734771836794,0.09034335,98460.0,98459.0,0.24197289]
[1734771836998,0.09034335,98460.0,98436.0,0.00104]
[1734771836999,0.050808,98444.0,98436.0,0.00104]
[1734771837197,0.42199718,98444.0,98434.0,0.24197289]
[1734771837400,0.42214856,98444.0,98434.0,0.24197289]
[1734771838193,0.42514856,98444.0,98434.0,0.24197289]
[1734771838394,0.43214856,98444.0,98434.0,0.24197289]
[1734771838604,0.43212747,98444.0,98434.0,0.24197289]
[1734771838902,0.43212747,98444.0,98432.0,0.08759493]
[1734771839204,0.42175938,98444.0,98432.0,0.08759493]
[1734771839792,0.06095938,98444.0,98432.0,0.08759493]
[1734771840491,0.06095938,98444.0,98432.0,0.0751]
[1734771840696,0.06095938,98444.0,98442.0,0.01245464]
[1734771841603,0.05295938,98444.0,98432.0,0.0751]
[1734771841806,0.05295938,98444.0,98441.0,0.01226418]
[1734771844496,0.00204,98444.0,98441.0,0.37306418]
[1734771844801,0.0206259,98459.0,98455.0,0.050802]
[1734771845002,0.050801,98458.0,98456.0,0.0767]
[1734771845403,0.050808,98444.0,98443.0,0.00011953]
[1734771845798,0.050848,98444.0,98443.0,0.00011953]
[1734771847006,4e-05,98444.0,98443.0,0.00011953]
[1734771847195,0.00104,98444.0,98443.0,0.00011953]
[1734771847591,0.00204,98444.0,98443.0,0.00011953]
[1734771847903,0.00204,98444.0,98443.0,0.03901953]
[1734771848905,0.00104,98444.0,98443.0,0.03901953]
[1734771849309,0.00104,98444.0,98443.0,0.00011953]
[1734771850305,4e-05,98444.0,98443.0,0.00011953]
[1734771850602,0.00104,98444.0,98443.0,0.00011953]
[1734771851206,0.01233793,98444.0,98443.0,0.00011953]
[1734771853204,0.01233441,98444.0,98443.0,0.00011953]
[1734771853504,0.050808,98443.0,98442.0,8e-05]
[1734771853704,0.14150241,98443.0,98442.0,8e-05]
[1734771854204,0.14150241,98443.0,98442.0,1e-06]
[1734771854593,0.44150241,98443.0,98442.0,1e-06]
[1734771854801,0.44350241,98443.0,98442.0,1e-06]
[1734771854999,0.050824,98412.0,98411.0,0.0425]
[1734771855299,0.050864,98412.0,98411.0,0.0425]
[1734771855507,4e-05,98412.0,98411.0,0.0425]
[1734771857120,0.00104,98412.0,98411.0,0.0425]
[1734771857602,4e-05,98412.0,98411.0,0.0425]
[1734771857905,0.00104,98412.0,98411.0,0.0425]
[1734771858105,0.00304,98412.0,98411.0,0.0425]
[1734771859608,0.050817,98426.0,98423.0,0.050818]
[1734771859799,0.01017599,98425.0,98424.0,0.042]
[1734771860509,0.01017599,98425.0,98424.0,0.0823]
[1734771860702,0.3608,98427.0,98424.0,0.0823]
[1734771861016,0.3608,98427.0,98425.0,0.050817]
[1734771861395,0.0901072,98434.0,98424.0,0.0823]
[1734771861396,0.0901072,98434.0,98433.0,0.050813]
[1734771861595,0.10009908,98434.0,98424.0,0.042]
[1734771861915,0.10009908,98434.0,98432.0,0.050814]
[1734771861916,0.00999819,98433.0,98432.0,0.050814]
[1734771863607,0.01004197,98433.0,98432.0,0.050814]
[1734771863910,0.01004197,98433.0,98432.0,0.052814]
[1734771864295,0.01004197,98433.0,98432.0,0.002]
[1734771864809,0.01005127,98433.0,98432.0,0.002]
[1734771865807,0.01005127,98433.0,98424.0,0.0121569]
[1734771865808,0.050815,98431.0,98426.0,0.050817]
[1734771866009,0.01005127,98430.0,98426.0,0.050817]
[1734771866209,0.01005127,98429.0,98426.0,0.050817]
[1734771866411,0.01005127,98429.0,98421.0,0.3608]
[1734771866412,0.01005127,98428.0,98421.0,0.3608]
[1734771866716,0.01005127,98427.0,98421.0,0.37245906]
[1734771866908,0.48169866,98436.0,98421.0,0.37245906]
[1734771867108,0.01001742,98435.0,98421.0,0.37245906]
[1734771867308,0.48169866,98436.0,98426.0,0.001]
[1734771867506,0.001,98429.0,98426.0,0.001]
[1734771867712,0.001,98429.0,98427.0,0.039]
[1734771867905,0.001,98429.0,98428.0,0.092116]
[1734771868408,0.09055882,98433.0,98428.0,0.0413]
[1734771869222,0.050813,98434.0,98428.0,0.0413]
[1734771869514,0.050814,98431.0,98428.0,0.0413]
[1734771870014,0.007,98429.0,98428.0,0.0423]
[1734771870610,0.050815,98430.0,98428.0,0.0443]
[1734771870815,0.050815,98430.0,98428.0,0.0453]
[1734771871212,0.050815,98430.0,98428.0,0.0463]
[1734771871814,0.050815,98430.0,98428.0,0.0453]
[1734771872213,0.050815,98430.0,98428.0,0.0463]
[1734771872517,0.45135882,98436.0,98434.0,0.050812]
[1734771872819,0.45135882,98436.0,98428.0,0.0463]
[1734771873014,0.050815,98430.0,98428.0,0.0463]
[1734771873217,4e-05,98429.0,98428.0,0.0463]
[1734771873712,4e-05,98429.0,98428.0,0.0433]
[1734771873919,4e-05,98429.0,98428.0,0.0443]
[1734771874513,0.00104,98429.0,98428.0,0.0443]
[1734771875624,0.00104,98429.0,98428.0,0.0473]
[1734771876516,0.00104,98429.0,98428.0,0.2286887]
[1734771877619,0.00104,98429.0,98428.0,0.0473]
[1734771878121,4e-05,98429.0,98428.0,0.0443]
[1734771878420,0.00104,98429.0,98428.0,0.0473]
[1734771878915,0.12089866,98442.0,98436.0,0.050812]
[1734771879120,0.10128154,98450.0,98449.0,0.050805]
[1734771879308,0.10128154,98451.0,98449.0,0.411605]
[1734771879505,0.10128154,98451.0,98450.0,0.0803]
[1734771879710,0.11122004,98451.0,98450.0,0.0803]
[1734771880618,0.10128154,98451.0,98450.0,0.09158998]
[1734771880923,0.050802,98455.0,98453.0,0.050803]
[1734771882012,0.3608,98459.0,98457.0,0.050801]
[1734771882523,0.0786,98467.0,98465.0,0.050796]
[1734771883226,0.050793,98473.0,98467.0,0.050795]
[1734771884623,0.050794,98470.0,98467.0,0.050795]
[1734771885016,0.077,98477.0,98467.0,0.050795]
[1734771885209,0.127791,98477.0,98473.0,0.050792]
[1734771886515,0.136791,98477.0,98473.0,0.050792]
[1734771886713,0.142791,98477.0,98473.0,0.050792]
[1734771886921,0.133791,98477.0,98473.0,0.050792]
[1734771887133,0.142791,98477.0,98473.0,0.050792]
[1734771887526,0.092,98477.0,98473.0,0.050792]
[1734771887822,0.092,98477.0,98475.0,0.050791]
[1734771888426,0.09,98477.0,98475.0,0.050791]
[1734771888818,0.0511,98477.0,98475.0,0.050791]
[1734771889121,0.009,98477.0,98475.0,0.050791]
[1734771889320,0.0365,98488.0,98487.0,0.050785]
[1734771889618,0.3608,98491.0,98490.0,0.050784]
[1734771890312,0.3608,98511.0,98500.0,0.050779]
[1734771890623,0.3608,98511.0,98507.0,0.050775]
[1734771890810,0.41157,98518.0,98507.0,0.050775]
[1734771891011,0.21073329,98521.0,98507.0,0.050775]
[1734771891827,0.3608,98522.0,98506.0,0.3608]
[1734771892019,0.3608,98522.0,98514.0,0.050771]
[1734771892220,0.3608,98522.0,98517.0,8e-05]
[1734771892724,0.3608,98522.0,98521.0,0.050768]
[1734771893124,0.3678,98522.0,98521.0,0.050768]
[1734771893320,0.013,98522.0,98521.0,0.050768]
[1734771893722,0.007,98522.0,98521.0,0.050768]
[1734771893925,0.006,98522.0,98521.0,0.051768]
[1734771894122,0.077,98543.0,98541.0,0.050757]
[1734771894917,0.0386,98543.0,98541.0,0.050757]
[1734771895326,0.050758,98541.0,98538.0,8e-05]
[1734771895522,0.050759,98539.0,98538.0,8e-05]
[1734771897727,0.050759,98539.0,98538.0,0.00098493]
[1734771898513,0.052759,98539.0,98538.0,0.00098493]
[1734771898923,0.050759,98539.0,98538.0,0.00098493]
[1734771899126,0.051759,98539.0,98538.0,0.00098493]
[1734771899317,0.051759,98539.0,98518.0,0.00152249]
[1734771899318,0.001,98539.0,98518.0,0.00152249]
[1734771899630,0.3608,98536.0,98519.0,0.050769]
[1734771899824,0.3608,98525.0,98522.0,0.050767]
[1734771900135,0.050761,98534.0,98527.0,0.050764]
[1734771900427,0.088562,98533.0,98527.0,0.050764]
[1734771900620,0.050762,98532.0,98527.0,0.050764]
[1734771901127,0.3608,98528.0,98521.0,8e-05]
[1734771901530,0.3608,98528.0,98525.0,0.050765]
[1734771901726,0.0378,98533.0,98527.0,0.002]
[1734771901927,0.0378,98533.0,98529.0,0.050764]
[1734771902138,0.0378,98533.0,98527.0,0.002]
[1734771902535,4e-05,98528.0,98527.0,0.052765]
[1734771902832,4e-05,98528.0,98527.0,0.054765]
[1734771903031,4e-05,98528.0,98527.0,0.052765]
[1734771903222,4e-05,98528.0,98525.0,0.003]
[1734771903223,0.050765,98527.0,98525.0,0.003]
[1734771903624,4e-05,98526.0,98525.0,0.003]
[1734771903825,0.36084,98526.0,98525.0,0.003]
[1734771904625,0.36084,98526.0,98524.0,0.050766]
[1734771904931,4e-05,98525.0,98524.0,0.050766]
[1734771905928,4e-05,98525.0,98524.0,0.054766]
[1734771906227,4e-05,98525.0,98524.0,0.004]
[1734771906438,4e-05,98525.0,98524.0,0.003]
[1734771906634,4e-05,98525.0,98524.0,0.007]
[1734771907432,0.050784,98491.0,98485.0,0.411586]
[1734771907628,0.050784,98491.0,98485.0,0.052146]
[1734771907829,4e-05,98490.0,98488.0,0.050784]
[1734771908135,4e-05,98490.0,98489.0,0.19407977]
[1734771908434,0.3608,98507.0,98490.0,0.101566]
[1734771908729,0.3608,98516.0,98492.0,0.36088]
[1734771909128,0.050776,98506.0,98501.0,0.050858]
[1734771909321,0.050776,98506.0,98502.0,0.050777]
[1734771909524,0.050776,98505.0,98502.0,0.050777]
[1734771909724,0.004,98507.0,98502.0,0.050777]
[1734771911035,0.050777,98504.0,98502.0,0.050777]
[1734771911938,0.050777,98504.0,98502.0,0.052777]
[1734771912232,0.050777,98504.0,98502.0,0.050777]
[1734771912433,0.050777,98504.0,98502.0,0.005]
[1734771912635,0.3608,98503.0,98502.0,0.005]
[1734771912833,0.050782,98493.0,98492.0,8e-05]
[1734771913131,0.411622,98493.0,98492.0,8e-05]
[1734771913736,0.42161303,98493.0,98492.0,8e-05]
[1734771915035,0.42261303,98493.0,98492.0,8e-05]
[1734771915635,0.42661303,98493.0,98492.0,8e-05]
[1734771916038,0.42655826,98493.0,98492.0,8e-05]
[1734771916634,0.42255826,98493.0,98492.0,8e-05]
[1734771916825,0.42755826,98493.0,98492.0,8e-05]
[1734771917730,0.37677626,98493.0,98492.0,8e-05]
[1734771917932,0.36584,98493.0,98492.0,8e-05]
[1734771918134,0.37577626,98493.0,98492.0,8e-05]
[1734771918739,0.36184,98493.0,98492.0,0.00108]
[1734771919039,0.36084,98493.0,98492.0,0.00208]
[1734771919242,0.36084,98493.0,98492.0,0.00108]
[1734771919447,0.36084,98493.0,98492.0,0.00208]
[1734771921445,0.36084,98493.0,98492.0,0.01337285]
[1734771921741,0.36084,98493.0,98492.0,0.01437285]
[1734771921948,0.3707532,98493.0,98492.0,0.00308]
[1734771922141,0.36084,98493.0,98492.0,0.00308]
[1734771922336,0.36084,98493.0,98492.0,0.00208]
[1734771922542,0.36084,98493.0,98492.0,0.00408]
[1734771922740,0.37075195,98493.0,98492.0,0.00408]
[1734771924942,0.3707559,98493.0,98492.0,0.00408]
[1734771926040,0.3707559,98493.0,98492.0,0.00208]
[1734771926248,0.3707559,98493.0,98492.0,0.00408]
[1734771926549,0.3707559,98493.0,98492.0,0.00208]
[1734771926745,0.3707559,98493.0,98492.0,0.00408]
[1734771927551,0.3707559,98493.0,98492.0,8e-05]
[1734771927850,0.3707559,98493.0,98492.0,0.00408]
[1734771928349,0.36084,98493.0,98492.0,0.00408]
[1734771931443,0.36084,98493.0,98492.0,0.00208]
[1734771931639,0.37077315,98493.0,98492.0,0.00408]
[1734771932844,0.37077823,98493.0,98492.0,0.00408]
[1734771933043,0.00997823,98493.0,98492.0,0.00408]
[1734771935045,4e-05,98493.0,98492.0,0.00408]
[1734771936153,0.00998132,98493.0,98492.0,0.00408]
[1734771936848,0.009986,98493.0,98492.0,0.00408]
[1734771938040,0.081786,98493.0,98492.0,0.00408]
[1734771938655,0.081786,98493.0,98492.0,0.18646145]
[1734771939680,0.08183701,98493.0,98492.0,0.12946145]
[1734771939859,0.08183701,98493.0,98480.0,0.12946145]
[1734771940054,0.3608,98484.0,98480.0,0.12946145]
[1734771940249,4e-05,98481.0,98480.0,0.12946145]
[1734771940456,0.060849,98481.0,98480.0,0.12946145]
[1734771940655,0.060849,98481.0,98480.0,0.13540318]
[1734771940849,0.060849,98481.0,98480.0,0.13740318]
[1734771941049,0.060849,98481.0,98480.0,0.13940318]
[1734771941250,0.18181077,98481.0,98480.0,0.00994173]
[1734771941450,0.18181077,98481.0,98480.0,0.00794173]
[1734771941652,0.18281077,98481.0,98480.0,0.01594173]
[1734771942655,0.061849,98481.0,98480.0,0.01594173]
[1734771943360,0.061849,98481.0,98480.0,0.01794173]
[1734771945058,0.061849,98481.0,98465.0,0.24197289]
[1734771945262,0.772396,98466.0,98465.0,0.24197289]
[1734771945458,0.78242565,98466.0,98465.0,0.24197289]
[1734771946363,0.0508,98458.0,98457.0,0.00152343]
[1734771946556,0.42158965,98458.0,98457.0,0.00152343]
[1734771946763,0.42162965,98458.0,98454.0,0.00012813]
[1734771947064,0.050842,98455.0,98454.0,0.00012813]
[1734771947267,0.06083165,98455.0,98454.0,0.00012813]
[1734771948375,0.07383165,98455.0,98454.0,0.00012813]